bitfinex/quotes_BTCUSD_20250118
["timestamp","ask_amount","ask_price","bid_price","bid_amount"]
[1737200007404,0.85651696,103250.0,103240.0,0.12409859]
[1737200007856,0.87615643,103250.0,103240.0,0.12409859]
[1737200008528,0.62737388,103250.0,103240.0,0.12409859]
[1737200008743,0.71588956,103250.0,103240.0,0.12409859]
[1737200009648,0.82204956,103250.0,103240.0,0.12409859]
[1737200009823,0.72204956,103250.0,103240.0,0.12409859]
[1737200010424,1.07002588,103250.0,103240.0,0.12409859]
[1737200010938,1.17002588,103250.0,103240.0,0.12409859]
[1737200011146,1.16386588,103250.0,103240.0,0.12409859]
[1737200012569,1.01386588,103250.0,103240.0,0.12409859]
[1737200013193,0.84629801,103250.0,103240.0,0.12409859]
[1737200014275,0.94629801,103250.0,103240.0,0.12409859]
[1737200014462,0.77224372,103250.0,103240.0,0.12409859]
[1737200017378,0.80598051,103250.0,103240.0,0.12409859]
[1737200018614,0.56408857,103250.0,103240.0,0.12409859]
[1737200018813,0.63503454,103250.0,103240.0,0.14709859]
[1737200020093,0.41746668,103250.0,103240.0,0.14709859]
[1737200020989,0.48841265,103250.0,103240.0,0.14709859]
[1737200024464,0.48841265,103250.0,103240.0,0.12409859]
[1737200024804,0.34652071,103250.0,103240.0,0.12409859]
[1737200025033,0.41746668,103250.0,103240.0,0.12409859]
[1737200026886,0.48841265,103250.0,103240.0,0.12409859]
[1737200027704,0.34652071,103250.0,103240.0,0.12409859]
[1737200027898,0.74426668,103250.0,103240.0,0.14709859]
[1737200031004,0.52332071,103250.0,103240.0,0.24395959]
[1737200031181,0.59426668,103250.0,103240.0,0.24395959]
[1737200031590,0.59426668,103250.0,103240.0,0.14709859]
[1737200031969,0.59426668,103250.0,103240.0,0.24395959]
[1737200032177,0.59426668,103250.0,103240.0,0.14709859]
[1737200032487,0.59426668,103250.0,103240.0,0.24395959]
[1737200032699,0.59426668,103250.0,103240.0,0.14709859]
[1737200032860,0.59426668,103250.0,103240.0,0.24395959]
[1737200033054,0.39817387,103250.0,103240.0,0.24395959]
[1737200033295,0.49502587,103250.0,103240.0,0.24395959]
[1737200033881,0.49502587,103250.0,103240.0,0.26194949]
[1737200034329,0.39817387,103250.0,103240.0,0.26194949]
[1737200034546,0.3272279,103250.0,103240.0,0.26194949]
[1737200035344,0.0004279,103250.0,103240.0,0.26194949]
[1737200037952,0.0004279,103250.0,103240.0,0.34824385]
[1737200040785,0.1084626,103250.0,103240.0,0.34824385]
[1737200040986,0.2053146,103250.0,103240.0,0.32524385]
[1737200041208,0.2053146,103250.0,103240.0,0.22838285]
[1737200041414,0.30455541,103250.0,103240.0,0.22838285]
[1737200041890,0.63135541,103250.0,103240.0,0.22838285]
[1737200042117,0.63135541,103250.0,103240.0,0.14208849]
[1737200042335,0.88135541,103250.0,103240.0,0.09408849]
[1737200042990,0.88135541,103250.0,103240.0,0.07609859]
[1737200044759,0.89086674,103250.0,103240.0,0.07609859]
[1737200046709,0.79086674,103250.0,103240.0,0.07609859]
[1737200047324,0.46406674,103250.0,103240.0,0.07609859]
[1737200047761,0.45455541,103250.0,103240.0,0.09909859]
[1737200048174,0.45455541,103250.0,103240.0,0.07609859]
[1737200048344,0.55455541,103250.0,103240.0,0.07609859]
[1737200049595,0.65379622,103250.0,103240.0,0.00089859]
[1737200050218,0.55455541,103250.0,103240.0,0.00089859]
[1737200053336,0.19688,103220.0,103210.0,0.60495872]
[1737200053579,0.50536667,103220.0,103210.0,0.60495872]
[1737200053811,0.50415551,103220.0,103210.0,0.60495872]
[1737200054392,0.55415551,103220.0,103210.0,0.60495872]
[1737200054550,0.5542058,103220.0,103210.0,0.00089817]
[1737200058122,0.4542058,103220.0,103210.0,0.00089817]
[1737200058384,0.5542058,103220.0,103210.0,0.00089817]
[1737200058727,0.4542058,103220.0,103210.0,0.00089817]
[1737200058932,0.5542058,103220.0,103210.0,0.00089817]
[1737200059313,0.4542058,103220.0,103210.0,0.00089817]
[1737200059518,0.46394264,103220.0,103210.0,0.08099817]
[1737200062063,0.4542058,103220.0,103210.0,0.10399817]
[1737200062664,0.3042058,103220.0,103210.0,0.10399817]
[1737200071588,0.3042058,103220.0,103210.0,0.15179817]
[1737200078618,0.1961711,103220.0,103210.0,0.15179817]
[1737200078820,0.3042058,103220.0,103210.0,0.15179817]
[1737200085420,0.3381189,103220.0,103210.0,0.15179817]
[1737200086424,5.029e-05,103220.0,103210.0,0.24868717]
[1737200086597,0.16790419,103220.0,103210.0,0.24868717]
[1737200086923,0.07102419,103220.0,103210.0,0.24868717]
[1737200087060,0.16790419,103220.0,103210.0,0.24868717]
[1737200088932,0.09693029,103220.0,103210.0,0.24868717]
[1737200089082,5.029e-05,103220.0,103210.0,0.24868717]
[1737200089944,0.07102419,103220.0,103210.0,0.24868717]
[1737200091908,0.07102419,103220.0,103210.0,0.33498153]
[1737200093642,0.07102419,103220.0,103210.0,0.78351524]
[1737200093852,0.07102419,103220.0,103210.0,0.79337951]
[1737200095321,0.56030388,103220.0,103210.0,0.51634824]
[1737200095459,0.7851928,103220.0,103210.0,0.51634824]
[1737200097036,0.346889,103210.0,103200.0,0.00089838]
[1737200097231,0.51710371,103210.0,103200.0,0.00089838]
[1737200097433,0.66258081,103210.0,103200.0,0.00089838]
[1737200098632,0.88014867,103210.0,103200.0,0.00089838]
[1737200099050,1.06048948,103210.0,103200.0,0.00089838]
[1737200099758,1.26584369,103210.0,103200.0,0.00089838]
[1737200102072,1.35277057,103210.0,103200.0,0.00089838]
[1737200103191,1.1352027,103210.0,103200.0,0.00089838]
[1737200104701,0.96114841,103210.0,103200.0,0.00089838]
[1737200108062,0.85904291,103210.0,103200.0,0.00089838]
[1737200108261,0.87232291,103210.0,103200.0,0.00089838]
[1737200108463,0.74178219,103210.0,103200.0,0.00089838]
[1737200108673,0.54178219,103210.0,103200.0,0.00089838]
[1737200109890,0.45485531,103210.0,103200.0,0.00089838]
[1737200110460,0.56308081,103210.0,103200.0,0.00089838]
[1737200110942,0.45485531,103210.0,103200.0,0.00089838]
[1737200111178,0.56308081,103210.0,103200.0,0.00089838]
[1737200111677,0.56350891,103210.0,103200.0,0.00089838]
[1737200111964,0.45528341,103210.0,103200.0,0.00089838]
[1737200114768,0.45528341,103210.0,103200.0,0.04659838]
[1737200114984,0.45528341,103210.0,103200.0,0.12349838]
[1737200118557,0.45528341,103210.0,103200.0,0.14649838]
[1737200126304,0.66350891,103210.0,103200.0,0.07779838]
[1737200126505,0.66350891,103210.0,103200.0,0.00089838]
[1737200127215,0.66350891,103210.0,103200.0,0.02389838]
[1737200127469,0.56350891,103210.0,103200.0,0.00089838]
[1737200127663,0.74480891,103210.0,103200.0,0.00089838]
[1737200128156,0.84404972,103210.0,103200.0,0.00089838]
[1737200128693,0.74480891,103210.0,103200.0,0.00089838]
[1737200129388,0.83173579,103210.0,103200.0,0.00089838]
[1737200131198,0.93173579,103210.0,103200.0,0.00089838]
[1737200132047,0.85043579,103210.0,103200.0,0.00089838]
[1737200136450,0.98097651,103210.0,103200.0,0.00089838]
[1737200137329,1.08021732,103210.0,103200.0,0.00089838]
[1737200138079,0.98097651,103210.0,103200.0,0.00089838]
[1737200138736,1.1550308,103210.0,103200.0,0.00089838]
[1737200140890,1.37259867,103210.0,103200.0,0.00089838]
[1737200142423,0.98107678,103210.0,103200.0,0.00089838]
[1737200147463,0.9066646,103210.0,103200.0,0.00089838]
[1737200147685,0.97768401,103210.0,103200.0,0.00089838]
[1737200148292,0.9066646,103210.0,103200.0,0.00089838]
[1737200149477,0.95722482,103210.0,103200.0,0.00089838]
[1737200150813,1.00087065,103210.0,103200.0,0.00089838]
[1737200151516,1.00431268,103210.0,103200.0,0.00089838]
[1737200152992,0.95257187,103210.0,103200.0,3.8e-07]
[1737200154448,0.98528703,103210.0,103200.0,3.8e-07]
[1737200157263,1.00484549,103210.0,103200.0,3.8e-07]
[1737200162934,0.87704549,103210.0,103200.0,3.8e-07]
[1737200163915,1.00474549,103210.0,103200.0,3.8e-07]
[1737200164147,1.07097232,103210.0,103200.0,3.8e-07]
[1737200167052,1.1039863,103210.0,103200.0,3.8e-07]
[1737200167491,0.87704549,103210.0,103200.0,3.8e-07]
[1737200168663,0.96360703,103210.0,103200.0,3.8e-07]
[1737200168889,0.86360703,103210.0,103200.0,0.07580038]
[1737200169127,0.93062844,103210.0,103200.0,0.07580038]
[1737200169355,0.83062844,103210.0,103200.0,0.07580038]
[1737200170051,0.92986925,103210.0,103200.0,0.07580038]
[1737200171206,0.92374925,103210.0,103200.0,0.07580038]
[1737200171417,0.92034706,103210.0,103200.0,0.07580038]
[1737200171800,0.71412818,103210.0,103200.0,0.07580038]
[1737200172038,0.85007356,103210.0,103200.0,0.05960038]
[1737200172451,0.85619356,103210.0,103200.0,0.05960038]
[1737200172663,0.85007356,103210.0,103200.0,0.12810038]
[1737200172898,0.75007356,103210.0,103200.0,0.12810038]
[1737200173111,0.6595821,103210.0,103200.0,0.12810038]
[1737200173317,0.88061479,103210.0,103200.0,0.12810038]
[1737200173523,0.84673594,103210.0,103200.0,0.12810038]
[1737200174148,0.84672404,103210.0,103200.0,0.12810038]
[1737200175016,0.54223779,103210.0,103200.0,0.12810038]
[1737200177863,0.54223779,103210.0,103200.0,0.10510038]
[1737200179639,0.45524444,103210.0,103200.0,0.10510038]
[1737200180200,0.34705791,103210.0,103200.0,0.10510038]
[1737200180405,0.45524444,103210.0,103200.0,0.10510038]
[1737200182838,0.45524444,103210.0,103200.0,0.10599897]
[1737200184987,0.56343097,103210.0,103200.0,0.10599897]
[1737200185368,0.66343097,103210.0,103200.0,0.10599897]
[1737200185786,0.66343097,103210.0,103200.0,0.00089859]
[1737200187396,1.27240585,103210.0,103200.0,0.00089859]
[1737200188712,1.05491057,103210.0,103200.0,0.00089859]
[1737200188907,0.83853751,103210.0,103200.0,0.00089859]
[1737200189112,1.05491057,103210.0,103200.0,0.00089859]
[1737200190039,0.95491057,103210.0,103200.0,0.00089859]
[1737200190243,0.95491057,103210.0,103200.0,0.07669859]
[1737200191059,0.84672404,103210.0,103200.0,0.07669859]
[1737200191228,0.95491057,103210.0,103200.0,0.07669859]
[1737200191434,0.84672404,103210.0,103200.0,0.07669859]
[1737200191729,0.95491057,103210.0,103200.0,0.07669859]
[1737200191963,0.65042432,103210.0,103200.0,0.07669859]
[1737200192516,0.54223779,103210.0,103200.0,0.07669859]
[1737200193159,0.45524444,103210.0,103200.0,0.07669859]
[1737200194745,0.45524444,103210.0,103200.0,0.12309859]
[1737200194946,0.30524444,103210.0,103200.0,0.12309859]
[1737200195925,0.15448525,103210.0,103200.0,0.12309859]
[1737200196350,0.25258546,103210.0,103200.0,0.12309859]
[1737200196508,0.25137425,103210.0,103200.0,0.12309859]
[1737200198730,0.25137425,103210.0,103200.0,0.14609859]
[1737200199336,0.25137425,103210.0,103200.0,0.24299759]
[1737200199540,0.25137425,103210.0,103200.0,0.14609859]
[1737200200358,0.25137425,103210.0,103200.0,0.24299759]
[1737200200587,0.25137425,103210.0,103200.0,0.14609859]
[1737200201322,0.25137425,103210.0,103200.0,0.24299759]
[1737200201924,0.25137425,103210.0,103200.0,0.14609859]
[1737200203084,0.25137425,103210.0,103200.0,0.24299759]
[1737200203903,0.15213344,103210.0,103200.0,0.24299759]
[1737200204151,0.05524444,103210.0,103200.0,0.24299759]
[1737200204350,0.39889082,103220.0,103200.0,0.24299759]
[1737200204557,0.49813163,103220.0,103210.0,0.1468]
[1737200204967,0.49813163,103220.0,103210.0,0.243689]
[1737200205170,0.49813163,103220.0,103210.0,0.1468]
[1737200205404,0.20747763,103220.0,103210.0,0.243689]
[1737200205616,5.029e-05,103220.0,103210.0,0.243689]
[1737200206024,0.09693029,103220.0,103210.0,0.243689]
[1737200206199,5.029e-05,103220.0,103210.0,0.243689]
[1737200206823,5.029e-05,103220.0,103210.0,0.25092897]
[1737200208016,5.029e-05,103220.0,103210.0,0.40092897]
[1737200208570,5.029e-05,103220.0,103210.0,0.70016978]
[1737200209796,5.029e-05,103220.0,103210.0,0.70967021]
[1737200210420,0.0004279,103240.0,103230.0,0.393671]
[1737200210580,0.0004279,103240.0,103230.0,0.39417492]
[1737200211756,0.0004279,103240.0,103230.0,0.40141489]
[1737200213531,0.0004279,103240.0,103230.0,0.39417492]
[1737200215977,0.0004279,103240.0,103230.0,0.59341573]
[1737200216716,0.0004279,103240.0,103230.0,0.60061353]
[1737200220420,0.0004279,103250.0,103230.0,0.39909627]
[1737200220626,0.0004279,103250.0,103240.0,0.393661]
[1737200222577,0.0004279,103250.0,103240.0,0.49290181]
[1737200223787,0.0004279,103250.0,103240.0,0.50009961]
[1737200223988,0.0004279,103250.0,103240.0,0.80828614]
[1737200224189,0.0004279,103250.0,103240.0,0.81440614]
[1737200224822,0.0004279,103260.0,103250.0,0.70183853]
[1737200225028,0.0004279,103260.0,103250.0,0.69289281]
[1737200227705,0.0004279,103260.0,103250.0,0.70009061]
[1737200229297,0.0004279,103260.0,103250.0,0.7196737]
[1737200229707,0.0004279,103260.0,103250.0,0.82786023]
[1737200231983,0.0004279,103260.0,103250.0,0.83773075]
[1737200232802,0.0004279,103270.0,103260.0,0.445842]
[1737200233031,0.0004279,103270.0,103260.0,0.54508281]
[1737200233584,0.0004279,103270.0,103260.0,0.65326934]
[1737200234637,0.0004279,103270.0,103260.0,0.66046714]
[1737200235175,0.0004279,103270.0,103260.0,0.91865367]
[1737200235382,0.0004279,103270.0,103260.0,0.938484]
[1737200235581,0.0004279,103270.0,103260.0,0.83029747]
[1737200235758,0.0004279,103270.0,103260.0,0.84773521]
[1737200236340,0.0004279,103270.0,103260.0,0.83029747]
[1737200236551,0.0004678,103290.0,103280.0,0.395824]
[1737200236724,0.0004678,103290.0,103280.0,0.49506481]
[1737200237128,0.0004678,103290.0,103280.0,0.50226261]
[1737200237735,0.00061896,103290.0,103280.0,0.50226261]
[1737200238584,0.0004,103310.0,103280.0,0.75640652]
[1737200238803,0.0004,103310.0,103300.0,0.395805]
[1737200239153,0.0004,103310.0,103300.0,0.42155939]
[1737200240680,0.0004,103310.0,103300.0,0.42875719]
[1737200242387,0.0008276,103310.0,103300.0,0.42875719]
[1737200243328,0.0008276,103310.0,103300.0,0.46489103]
[1737200243762,0.0008276,103310.0,103300.0,0.4744579]
[1737200244433,0.0008276,103310.0,103300.0,0.78188524]
[1737200244653,0.0008276,103310.0,103300.0,0.67369871]
[1737200245980,0.0008276,103310.0,103300.0,0.80737733]
[1737200246209,0.0008276,103310.0,103300.0,0.90737733]
[1737200246424,0.0008276,103310.0,103300.0,0.7991908]
[1737200246641,0.0004277,103320.0,103310.0,0.369796]
[1737200246847,0.00052526,103320.0,103310.0,0.65692504]
[1737200248662,0.00052526,103320.0,103310.0,0.49503681]
[1737200250184,0.20549779,103320.0,103310.0,0.096796]
[1737200250639,0.00052526,103320.0,103310.0,0.096796]
[1737200251092,0.00052526,103320.0,103310.0,0.197496]
[1737200251462,0.00052526,103320.0,103310.0,0.119796]
[1737200251676,0.10871179,103320.0,103310.0,0.119796]
[1737200251899,0.2879526,103320.0,103300.0,0.193594]
[1737200252062,0.10818653,103310.0,103300.0,0.290396]
[1737200252289,0.00052526,103320.0,103310.0,0.096796]
[1737200252498,0.00052526,103320.0,103310.0,0.119796]
[1737200252932,0.10871179,103320.0,103310.0,0.119796]
[1737200253148,0.00052526,103320.0,103310.0,0.119796]
[1737200253355,0.10871179,103320.0,103310.0,0.119796]
[1737200253566,0.00052526,103320.0,103310.0,0.119796]
[1737200254198,0.00954332,103320.0,103310.0,0.119796]
[1737200256206,0.00052526,103320.0,103310.0,0.119796]
[1737200256430,0.00052526,103320.0,103310.0,0.164796]
[1737200256626,0.00052526,103320.0,103310.0,0.242496]
[1737200256834,0.00052526,103320.0,103310.0,0.49173681]
[1737200257035,0.00052526,103320.0,103310.0,0.5174912]
[1737200257879,0.00052526,103320.0,103310.0,0.65362504]
[1737200259732,0.0004276,103330.0,103320.0,0.119786]
[1737200259900,0.0004276,103330.0,103320.0,0.21902681]
[1737200261302,0.0004276,103330.0,103320.0,0.65631504]
[1737200261697,0.0004276,103330.0,103320.0,0.75631504]
[1737200262612,0.0004276,103330.0,103320.0,0.86450157]
[1737200262978,0.0004276,103330.0,103320.0,0.69442681]
[1737200263181,0.0004276,103330.0,103320.0,0.7262612]
[1737200263606,0.0004276,103330.0,103320.0,1.2048704]
[1737200263727,0.0004276,103330.0,103320.0,1.2278704]
[1737200263929,0.0004276,103330.0,103320.0,1.16326774]
[1737200264152,0.0004276,103330.0,103320.0,1.26326774]
[1737200264800,0.0004276,103330.0,103320.0,0.81633949]
[1737200265301,0.0004276,103330.0,103320.0,0.7905851]
[1737200265889,0.0004276,103330.0,103320.0,0.81633949]
[1737200266093,0.0004276,103330.0,103320.0,0.94578104]
[1737200266758,0.0004276,103330.0,103320.0,0.92002665]
[1737200267148,0.0004276,103330.0,103320.0,0.79702665]
[1737200267331,0.0004276,103330.0,103320.0,0.71633949]
[1737200267789,0.0004276,103330.0,103320.0,0.6905851]
[1737200268679,0.0004276,103330.0,103320.0,0.71633949]
[1737200269052,0.10861413,103330.0,103320.0,0.18330134]
[1737200269254,0.0004276,103330.0,103320.0,0.18330134]
[1737200269888,0.0004276,103330.0,103320.0,0.20630134]
[1737200271117,0.0004276,103330.0,103320.0,0.119786]
[1737200271358,0.0004276,103330.0,103320.0,0.21902681]
[1737200271786,0.0004276,103330.0,103320.0,0.119786]
[1737200274491,0.0004276,103330.0,103320.0,0.31902681]
[1737200274711,0.0004276,103330.0,103320.0,0.44582681]
[1737200275632,0.0004276,103330.0,103320.0,0.4715812]
[1737200275844,0.0004276,103330.0,103320.0,0.82976773]
[1737200276075,0.0004276,103330.0,103320.0,0.91628307]
[1737200277254,0.0004276,103330.0,103320.0,1.6667707]
[1737200277703,0.0161688,103340.0,103330.0,0.47413139]
[1737200277917,0.0161688,103340.0,103330.0,0.72975873]
[1737200278161,0.0161688,103340.0,103330.0,0.65677198]
[1737200278373,0.0161688,103340.0,103330.0,0.6215722]
[1737200279012,0.0161688,103340.0,103330.0,0.59581781]
[1737200279225,0.0161688,103340.0,103330.0,0.65677198]
[1737200279791,0.0161688,103340.0,103330.0,1.36328432]
[1737200280286,0.0161688,103340.0,103330.0,1.46328432]
[1737200280492,0.0161688,103340.0,103330.0,1.53627107]
[1737200280764,0.0161688,103340.0,103330.0,1.57147085]
[1737200280957,0.0161688,103340.0,103330.0,1.42808454]
[1737200281160,0.0161688,103340.0,103330.0,1.52082045]
[1737200281367,0.0161688,103340.0,103330.0,1.49506606]
[1737200281599,0.0161688,103340.0,103330.0,1.59506606]
[1737200282011,0.0161688,103340.0,103330.0,1.16902525]
[1737200282231,0.0161688,103340.0,103330.0,0.93276456]
[1737200282413,0.0161688,103340.0,103330.0,1.03276456]
[1737200282672,0.0161688,103340.0,103330.0,1.18276456]
[1737200282890,0.0161688,103340.0,103330.0,1.10576456]
[1737200283631,0.0161688,103340.0,103330.0,1.20576456]
[1737200283856,0.0161688,103340.0,103330.0,0.369777]
[1737200284075,0.0161688,103340.0,103330.0,0.269777]
[1737200284914,0.0161688,103340.0,103330.0,0.46901781]
[1737200285115,0.0161688,103340.0,103330.0,0.69581781]
[1737200285290,0.0161688,103340.0,103330.0,0.91158451]
[1737200286303,0.0161688,103340.0,103330.0,1.53231384]
[1737200287686,0.0161688,103340.0,103330.0,1.43231384]
[1737200287895,0.0161688,103340.0,103330.0,1.33231384]
[1737200288114,0.0161688,103340.0,103330.0,1.43231384]
[1737200288952,0.0161688,103340.0,103330.0,1.43321138]
[1737200289165,0.0161688,103340.0,103330.0,1.28501138]
[1737200290142,0.0161688,103340.0,103330.0,1.37134518]
[1737200290361,0.0161688,103340.0,103330.0,1.47134518]
[1737200290563,0.0161688,103340.0,103330.0,1.37134518]
[1737200291007,0.0161688,103340.0,103330.0,1.29274518]
[1737200291446,0.0161688,103340.0,103330.0,1.39274518]
[1737200291649,0.0161688,103340.0,103330.0,1.29274518]
[1737200291812,0.0161688,103340.0,103330.0,1.39274518]
[1737200292048,0.0161688,103340.0,103330.0,1.29274518]
[1737200292256,0.0161688,103340.0,103330.0,1.39274518]
[1737200293633,0.0161688,103340.0,103330.0,1.17700927]
[1737200294264,0.0161688,103340.0,103330.0,1.30530927]
[1737200295562,0.0161688,103340.0,103330.0,1.40530927]
[1737200295817,0.0161688,103340.0,103330.0,1.43300789]
[1737200296027,0.0161688,103340.0,103330.0,1.6487438]
[1737200298238,0.0161688,103340.0,103330.0,1.5487438]
[1737200298447,0.0161688,103340.0,103330.0,1.16437057]
[1737200298644,0.0161688,103340.0,103330.0,1.26437057]
[1737200298861,0.0161688,103340.0,103330.0,1.30184318]
[1737200299205,0.0161688,103340.0,103330.0,1.22484318]
[1737200300329,0.0161688,103340.0,103330.0,1.24441294]
[1737200301423,0.0161688,103340.0,103330.0,1.19714456]
[1737200302820,0.0161688,103340.0,103330.0,1.29714456]
[1737200303207,0.0161688,103340.0,103330.0,1.16775353]
[1737200303567,0.0161688,103340.0,103330.0,1.06775353]
[1737200304017,0.0161688,103340.0,103330.0,1.16775353]
[1737200304416,0.0161688,103340.0,103330.0,1.06775353]
[1737200305261,0.0934688,103340.0,103330.0,0.80477954]
[1737200305470,0.0934688,103340.0,103330.0,0.82777954]
[1737200307167,0.0934688,103340.0,103330.0,0.33697341]
[1737200309554,0.0934688,103340.0,103330.0,0.65638687]
[1737200310827,0.0161688,103340.0,103330.0,0.65638687]
[1737200313329,0.0161688,103340.0,103330.0,0.83880532]
[1737200313786,0.0161688,103340.0,103330.0,13.73880532]
[1737200314437,0.0161688,103340.0,103330.0,13.81670532]
[1737200315127,0.0161688,103340.0,103330.0,13.72890825]
[1737200315587,0.0161688,103340.0,103330.0,13.72834529]
[1737200318095,0.0161688,103340.0,103330.0,13.72888918]
[1737200318550,0.0161688,103340.0,103330.0,14.00602999]
[1737200319475,0.0161688,103340.0,103330.0,14.13525398]
[1737200320188,0.0161688,103340.0,103330.0,14.28525398]
[1737200320902,0.0161688,103340.0,103330.0,14.1554861]
[1737200322030,0.0161688,103340.0,103330.0,14.68892943]
[1737200323150,0.0161688,103340.0,103330.0,14.47319352]
[1737200323852,0.0161688,103340.0,103330.0,14.51969352]
[1737200326215,0.0161688,103340.0,103330.0,14.41969352]
[1737200326652,0.0161688,103340.0,103330.0,14.43943606]
[1737200330935,0.0161688,103340.0,103330.0,14.53943606]
[1737200339204,0.0161688,103340.0,103330.0,14.64762259]
[1737200339375,0.00566765,103340.0,103330.0,14.74762259]
[1737200340156,0.00566765,103340.0,103330.0,14.77765622]
[1737200340358,0.00566765,103340.0,103330.0,14.74762259]
[1737200340564,0.00566765,103340.0,103330.0,14.77765621]
[1737200341002,0.00566765,103340.0,103330.0,14.74762259]
[1737200341215,0.00566765,103340.0,103330.0,14.87103372]
[1737200341475,0.0008275,103350.0,103340.0,0.269767]
[1737200341638,0.0008275,103350.0,103340.0,0.36900781]
[1737200343334,0.0008275,103350.0,103340.0,1.07761595]
[1737200343932,0.0008275,103350.0,103340.0,0.97837514]
[1737200344681,0.0008275,103350.0,103340.0,1.10811286]
[1737200346064,0.0008275,103350.0,103340.0,1.19460914]
[1737200346474,0.0008275,103350.0,103340.0,1.27380914]
[1737200347542,0.0008275,103350.0,103340.0,1.37304995]
[1737200347723,0.0008275,103350.0,103340.0,1.28655367]
[1737200349490,0.0008275,103350.0,103340.0,1.29600592]
[1737200350224,0.0008275,103350.0,103340.0,1.1662682]
[1737200352252,0.0008275,103350.0,103340.0,1.18431051]
[1737200352460,0.0004279,103360.0,103350.0,0.1222305]
[1737200352673,0.00057893,103360.0,103350.0,0.1222305]
[1737200354076,0.00057893,103360.0,103350.0,0.14027281]
[1737200354284,0.00057893,103360.0,103350.0,0.67597039]
[1737200357885,0.14803697,103360.0,103350.0,0.67597039]
[1737200358105,0.07727893,103360.0,103350.0,0.67597039]
[1737200358326,0.07727893,103360.0,103350.0,0.8489458]
[1737200359405,0.07727893,103360.0,103350.0,0.52953234]
[1737200360678,0.07727893,103360.0,103350.0,0.8489458]
[1737200361758,0.14803697,103360.0,103350.0,0.8489458]
[1737200361964,0.07727893,103360.0,103350.0,0.8489458]
[1737200363013,0.00057893,103360.0,103350.0,0.8489458]
[1737200364054,0.07133697,103360.0,103350.0,0.8489458]
[1737200364485,0.07133697,103360.0,103350.0,1.06516507]
[1737200365575,0.00057893,103360.0,103350.0,1.06516507]
[1737200365988,0.07133697,103360.0,103350.0,1.06516507]
[1737200366289,0.00057893,103360.0,103350.0,1.06516507]
[1737200367165,0.07133697,103360.0,103350.0,1.06516507]
[1737200368095,0.00057893,103360.0,103350.0,1.06516507]
[1737200368412,0.07133697,103360.0,103350.0,1.06516507]
[1737200368622,0.00057893,103360.0,103350.0,1.06516507]
[1737200369093,0.00057893,103360.0,103350.0,1.06606366]
[1737200371752,0.00057893,103360.0,103350.0,0.97955001]
[1737200372433,0.00057893,103360.0,103350.0,1.10515001]
[1737200374654,0.00057893,103360.0,103350.0,0.97537954]
[1737200375684,0.00057893,103360.0,103350.0,0.90164494]
[1737200376087,0.00057893,103360.0,103350.0,1.0712213]
[1737200376351,0.00057893,103360.0,103350.0,1.14197934]
[1737200376966,0.00057893,103360.0,103350.0,1.18522319]
[1737200378822,0.00057893,103360.0,103350.0,1.11446515]
[1737200379052,0.00057893,103360.0,103350.0,0.99564798]
[1737200379492,0.00057893,103360.0,103350.0,0.97264798]
[1737200379905,0.00057893,103360.0,103350.0,0.99564798]
[1737200380112,0.00057893,103360.0,103350.0,0.94724798]
[1737200380242,0.00057893,103360.0,103350.0,0.84704798]
[1737200380674,0.00057893,103360.0,103350.0,0.9772608]
[1737200380922,0.00057893,103360.0,103350.0,1.0002608]
[1737200381720,0.00057893,103360.0,103350.0,1.0774608]
[1737200381925,0.00057893,103360.0,103350.0,1.24745965]
[1737200382155,0.00057893,103360.0,103350.0,1.29585965]
[1737200382668,0.00057893,103360.0,103350.0,1.32267034]
[1737200383319,0.00057893,103360.0,103350.0,1.1579923]
[1737200383527,0.00057893,103360.0,103350.0,1.22875034]
[1737200383736,0.00057893,103360.0,103350.0,1.27172683]
[1737200386734,0.00057893,103360.0,103350.0,1.19488879]
[1737200388172,0.00057893,103360.0,103350.0,1.31115981]
[1737200388993,0.00057893,103360.0,103350.0,1.48191785]
[1737200389654,0.00057893,103360.0,103350.0,1.39547973]
[1737200390279,0.00057893,103360.0,103350.0,1.49547973]
[1737200390639,0.00057893,103360.0,103350.0,1.36564683]
[1737200391036,0.00057893,103360.0,103350.0,1.37172683]
[1737200391237,0.00057893,103360.0,103350.0,1.40473205]
[1737200391456,0.00057893,103360.0,103350.0,1.46340839]
[1737200392968,0.00057893,103360.0,103350.0,1.52457132]
[1737200393317,0.0004275,103370.0,103360.0,0.447949]
[1737200393553,0.00093083,103370.0,103360.0,0.61794785]
[1737200394370,0.00093083,103370.0,103360.0,0.63599016]
[1737200394577,0.00093083,103370.0,103360.0,0.7067482]
[1737200395185,0.00093083,103370.0,103360.0,1.24227372]
[1737200396008,0.00093083,103370.0,103360.0,1.28549614]
[1737200396635,0.00093083,103370.0,103360.0,1.31850136]
[1737200396844,0.00093083,103370.0,103360.0,1.17698528]
[1737200397057,0.00093083,103370.0,103360.0,1.28549614]
[1737200397495,0.00093083,103370.0,103360.0,1.31105362]
[1737200400073,0.00093083,103370.0,103360.0,1.3206474]
[1737200401152,0.00093083,103370.0,103360.0,1.35064332]
[1737200401543,0.00093083,103370.0,103360.0,1.3206474]
[1737200402418,0.00093083,103370.0,103360.0,1.24380936]
[1737200402833,0.00093083,103370.0,103360.0,1.24988936]
[1737200403088,0.00093083,103370.0,103360.0,1.07913132]
[1737200403303,0.00093083,103370.0,103360.0,1.29988936]
[1737200403704,0.00093083,103370.0,103360.0,1.22913132]
[1737200403914,0.00093083,103370.0,103360.0,1.35844434]
[1737200404341,0.00093083,103370.0,103360.0,1.42920238]
[1737200404727,0.00093083,103370.0,103360.0,1.35844434]
[1737200405356,0.00093083,103370.0,103360.0,1.48799095]
[1737200405880,0.00093083,103370.0,103360.0,1.38799095]
[1737200406119,0.00093083,103370.0,103360.0,1.34149095]
[1737200406563,0.00113083,103370.0,103360.0,1.21196007]
[1737200409851,0.00113083,103370.0,103360.0,0.85193926]
[1737200410289,0.07188887,103370.0,103360.0,0.83246178]
[1737200410686,0.15058887,103370.0,103360.0,0.83246178]
[1737200410926,0.15058887,103370.0,103360.0,0.845868]
[1737200411431,0.15058887,103370.0,103360.0,0.13779131]
[1737200411432,0.07983083,103370.0,103360.0,0.13779131]
[1737200411660,0.00113083,103370.0,103360.0,0.13779131]
[1737200414770,0.00093083,103370.0,103360.0,0.13868969]
[1737200416451,0.18840865,103380.0,103370.0,0.023]
[1737200416691,0.25916669,103380.0,103370.0,0.023]
[1737200416893,0.25795751,103380.0,103370.0,0.119739]
[1737200417089,0.25795751,103380.0,103370.0,0.023]
[1737200417519,0.25795751,103380.0,103370.0,0.04104231]
[1737200418151,0.25795751,103380.0,103370.0,0.13778131]
[1737200418374,0.25795751,103380.0,103370.0,0.04104231]
[1737200418579,0.25795751,103380.0,103370.0,0.13778131]
[1737200419024,0.25795751,103380.0,103370.0,0.04104231]
[1737200422427,0.25815751,103380.0,103370.0,0.04104231]
[1737200423062,0.45412832,103380.0,103370.0,0.04104231]
[1737200423516,0.46376973,103380.0,103370.0,0.04104231]
[1737200423729,0.46376973,103380.0,103370.0,0.01804231]
[1737200423926,0.46376973,103380.0,103360.0,0.02389838]
[1737200424137,0.07196735,103370.0,103360.0,0.12064738]
[1737200425653,0.07196735,103370.0,103360.0,0.13866201]
[1737200426412,0.07075804,103370.0,103360.0,0.13866201]